[Event "NJSK 2021 Jeugd C"]
[Site "Almelo, Netherlands"]
[Date "2021.08.03"]
[Round "4.11"]
[White "Lankheet, Hidde"]
[Black "Ramdien, Steven"]
[Result "0-1"]
[TimeControl "90min + 30sec/move"]
[WhiteElo "1000"]
[BlackElo "1589"]

1. e4 {[%clk 01:30:58]} c5 {[%clk 01:30:57]} {[%emt 00:00:04]} 2. Nf3 {[%clk
01:31:23]} {[%emt 00:00:06]} d6 {[%clk 01:31:23]} {[%emt 00:00:04]} 3. d4
{[%clk 01:31:46]} {[%emt 00:00:06]} cxd4 {[%clk 01:31:50]} {[%emt 00:00:03]} 4.
Nxd4 {[%clk 01:32:08]} {[%emt 00:00:09]} Nf6 {[%clk 01:32:16]} {[%emt
00:00:03]} 5. Nc3 {[%clk 01:32:28]} {[%emt 00:00:11]} a6 {[%clk 01:32:39]}
{[%emt 00:00:06]} 6. Be3 {[%clk 01:32:51]} {[%emt 00:00:07]} g6 {[%clk
01:32:51]} {[%emt 00:00:19]} 7. Be2 {[%clk 01:32:24]} {[%emt 00:00:57]} Bg7
{[%clk 01:33:14]} {[%emt 00:00:06]} 8. Qd2 {[%clk 01:32:12]} {[%emt 00:00:41]}
O-O {[%clk 01:33:21]} {[%emt 00:00:23]} 9. O-O {[%clk 01:32:20]} {[%emt
00:00:23]} b5 {[%clk 01:32:55]} {[%emt 00:00:56]} 10. a3 {[%clk 01:32:11]}
{[%emt 00:00:40]} Bb7 {[%clk 01:32:57]} {[%emt 00:00:28]} 11. f3 {[%clk
01:32:08]} {[%emt 00:00:33]} Nc6 {[%clk 01:32:38]} {[%emt 00:00:48]} 12. Rad1
{[%clk 01:31:09]} {[%emt 00:01:29]} Rc8 {[%clk 01:31:54]} {[%emt 00:01:14]} 13.
Nxc6 {[%clk 01:27:18]} {[%emt 00:04:21]} Bxc6 {[%clk 01:31:36]} {[%emt
00:00:48]} 14. Bh6 {[%clk 01:18:13]} {[%emt 00:09:35]} Bb7 {[%clk 01:28:17]}
{[%emt 00:03:50]} 15. Bxg7 {[%clk 01:12:58]} {[%emt 00:05:44]} Kxg7 {[%clk
01:28:45]} {[%emt 00:00:03]} 16. Rfe1 {[%clk 01:11:40]} {[%emt 00:01:47]} Qc7
{[%clk 01:26:59]} {[%emt 00:02:15]} 17. Bd3 {[%clk 01:05:41]} {[%emt 00:06:30]}
h5 {[%clk 01:15:45]} {[%emt 00:11:44]} 18. h4 {[%clk 01:03:07]} {[%emt
00:03:03]} e6 {[%clk 01:12:25]} {[%emt 00:03:43]} 19. Re2 {[%clk 01:02:09]}
{[%emt 00:01:36]} Nd7 {[%clk 01:11:12]} {[%emt 00:01:42]} 20. f4 {[%clk
00:59:56]} {[%emt 00:02:42]} Nf6 {[%clk 01:10:21]} {[%emt 00:01:22]} 21. Rde1
{[%clk 00:55:30]} {[%emt 00:04:55]} Ng4 {[%clk 01:09:50]} {[%emt 00:01:01]} 22.
Nd1 {[%clk 00:53:59]} {[%emt 00:02:02]} Qd8 {[%clk 01:04:23]} {[%emt 00:05:56]}
23. g3 {[%clk 00:47:24]} {[%emt 00:07:06]} d5 {[%clk 00:57:29]} {[%emt
00:07:23]} 24. e5 {[%clk 00:42:36]} {[%emt 00:05:19]} Qb6+ {[%clk 00:55:52]}
{[%emt 00:02:06]} 25. Ne3 {[%clk 00:38:56]} {[%emt 00:04:10]} Rfd8 {[%emt
00:07:04]} 26. Kf1 {[%emt 00:06:00]} Nxe3+ {[%clk 00:39:07]} {[%emt 00:08:38]}
27. Rxe3 {[%clk 00:35:22]} {[%emt 00:00:38]} Qc6 {[%clk 00:36:21]} {[%emt
00:03:16]} 28. R3e2 {[%clk 00:31:19]} {[%emt 00:04:34]} Qb6 {[%clk 00:26:01]}
{[%emt 00:10:49]} 29. Qe3 {[%clk 00:30:51]} {[%emt 00:00:58]} d4 {[%clk
00:25:49]} {[%emt 00:00:43]} 30. Qd2 {[%clk 00:30:53]} {[%emt 00:00:27]} Qc6
{[%clk 00:25:07]} {[%emt 00:01:12]} 31. Be4 {[%clk 00:30:48]} {[%emt 00:00:35]}
Qb6 {[%clk 00:25:14]} {[%emt 00:00:23]} 32. Bd3 {[%clk 00:31:07]} {[%emt
00:00:11]} Bd5 {[%clk 00:24:15]} {[%emt 00:01:28]} 33. Be4 {[%clk 00:28:15]}
{[%emt 00:03:17]} Bc4 {[%clk 00:24:18]} {[%emt 00:00:33]} 34. Bd3 {[%clk
00:28:14]} {[%emt 00:00:31]} Qc6 {[%clk 00:24:32]} {[%emt 00:00:15]} 35. Re4
{[%clk 00:27:31]} {[%emt 00:01:15]} Bxd3+ {[%clk 00:22:12]} {[%emt 00:02:50]}
36. cxd3 {[%clk 00:27:20]} {[%emt 00:00:39]} Qc2 {[%clk 00:22:05]} {[%emt
00:00:40]} 37. Qxc2 {[%clk 00:27:18]} {[%emt 00:00:31]} Rxc2 {[%clk 00:22:30]}
{[%emt 00:00:04]} 38. Rb1 {[%clk 00:27:30]} {[%emt 00:00:18]} Rd2 {[%clk
00:22:36]} {[%emt 00:00:24]} 39. Ke1 {[%clk 00:24:52]} {[%emt 00:03:08]} Rxd3
{[%clk 00:22:58]} {[%emt 00:00:08]} 40. Ke2 {[%clk 00:24:33]} {[%emt 00:00:49]}
Rxg3 {[%clk 00:23:00]} {[%emt 00:00:29]} 41. a4 {[%clk 00:22:43]} {[%emt
00:02:19]} b4 {[%clk 00:23:02]} {[%emt 00:00:28]} 42. Rd1 {[%clk 00:22:43]}
{[%emt 00:00:31]} Rg2+ {[%clk 00:22:22]} {[%emt 00:01:10]} 43. Kf3 {[%clk
00:22:38]} {[%emt 00:00:35]} Rxb2 {[%clk 00:22:39]} {[%emt 00:00:14]} 44. Rexd4
{[%clk 00:22:54]} {[%emt 00:00:13]} Rxd4 {[%clk 00:22:26]} {[%emt 00:00:43]} 45.
Rxd4 {[%clk 00:23:16]} {[%emt 00:00:08]} b3 {[%clk 00:22:42]} {[%emt 00:00:14]}
46. Rd1 {[%clk 00:22:25]} {[%emt 00:01:21]} Ra2 {[%clk 00:22:55]} {[%emt
00:00:17]} 47. Rb1 {[%clk 00:22:09]} {[%emt 00:00:46]} b2 {[%clk 00:23:09]}
{[%emt 00:00:14]} 48. Ke3 {[%clk 00:21:30]} {[%emt 00:01:11]} Ra3+ {[%clk
00:23:01]} {[%emt 00:00:39]} 49. Kd2 {[%clk 00:21:53]} {[%emt 00:00:06]} Rxa4
{[%clk 00:23:15]} {[%emt 00:00:16]} 50. Ke3 {[%clk 00:21:40]} {[%emt 00:00:41]}
Rb4 {[%clk 00:23:24]} {[%emt 00:00:22]} 51. Kf3 {[%clk 00:21:57]} {[%emt
00:00:14]} a5 {[%clk 00:23:44]} {[%emt 00:00:10]} 0-1

[Event "NJSK 2021 Jeugd C"]
[Site "Almelo, Netherlands"]
[Date "2021.08.03"]
[Round "4.12"]
[White "Blom, Rens"]
[Black "Sazonov, Fedor"]
[Result "1-0"]
[TimeControl "90min + 30sec/move"]
[WhiteElo "1650"]
[BlackElo "1650"]

1. c4 {[%clk 01:30:59]} {[%emt 00:00:01]} c5 {[%clk 01:30:53]} {[%emt
00:00:06]} 2. Nc3 {[%clk 01:31:22]} {[%emt 00:00:07]} Nc6 {[%clk 01:31:09]}
{[%emt 00:00:14]} 3. Nf3 {[%clk 01:31:31]} {[%emt 00:00:21]} g6 {[%clk
01:31:26]} {[%emt 00:00:13]} 4. g3 {[%clk 01:31:35]} {[%emt 00:00:26]} Bg7
{[%clk 01:31:50]} {[%emt 00:00:05]} 5. Bg2 {[%clk 01:31:52]} {[%emt 00:00:14]}
Nh6 {[%clk 01:32:01]} {[%emt 00:00:20]} 6. O-O {[%clk 01:31:24]} {[%emt
00:00:57]} O-O {[%clk 01:32:22]} {[%emt 00:00:09]} 7. e3 {[%clk 01:31:03]}
{[%emt 00:00:51]} e6 {[%clk 01:31:54]} {[%emt 00:00:58]} 8. d4 {[%clk
01:30:42]} {[%emt 00:00:51]} b6 {[%clk 01:31:57]} {[%emt 00:00:28]} 9. d5
{[%clk 01:25:39]} {[%emt 00:05:33]} exd5 {[%emt 00:02:50]} 10. cxd5 {[%clk
01:25:21]} {[%emt 00:00:25]} Ne5 {[%clk 01:29:53]} {[%emt 00:00:34]} 11. Nxe5
{[%clk 01:24:40]} {[%emt 00:01:13]} Bxe5 {[%clk 01:30:12]} {[%emt 00:00:11]} 12.
d6 {[%clk 01:23:00]} {[%emt 00:02:10]} Rb8 {[%clk 01:29:57]} {[%emt 00:00:45]}
13. Nd5 {[%clk 01:15:42]} {[%emt 00:07:48]} Bxd6 {[%clk 01:29:10]} {[%emt
00:01:16]} 14. e4 {[%clk 01:13:24]} {[%emt 00:02:50]} Kg7 {[%clk 01:27:09]}
{[%emt 00:02:30]} 15. Ne3 {[%clk 01:10:21]} {[%emt 00:03:34]} Be7 {[%emt
00:03:15]} 16. f4 {[%clk 01:06:19]} {[%emt 00:03:32]} f5 {[%clk 01:20:04]}
{[%emt 00:05:49]} 17. e5 {[%clk 01:01:31]} {[%emt 00:05:18]} Bb7 {[%clk
01:14:25]} {[%emt 00:06:09]} 18. Bxb7 {[%clk 00:58:30]} {[%emt 00:03:31]} Rxb7
{[%clk 01:14:36]} {[%emt 00:00:19]} 19. b3 {[%clk 00:58:48]} {[%emt 00:00:13]}
d6 {[%clk 01:08:19]} {[%emt 00:06:47]} 20. Bb2 {[%clk 00:55:42]} {[%emt
00:03:35]} dxe5 {[%clk 01:07:03]} {[%emt 00:01:46]} 21. Qf3 {[%clk 00:55:07]}
{[%emt 00:01:05]} Rd7 {[%clk 01:02:24]} {[%emt 00:05:09]} 22. fxe5 {[%clk
00:54:04]} {[%emt 00:01:33]} Rd2 {[%clk 01:00:15]} {[%emt 00:02:38]} 23. Rad1
{[%clk 00:48:00]} {[%emt 00:06:35]} Ng4 {[%clk 00:56:12]} {[%emt 00:04:33]} 24.
Bc3 {[%clk 00:34:47]} {[%emt 00:13:43]} Rd3 {[%clk 00:54:03]} {[%emt 00:02:39]}
25. Nxf5+ {[%clk 00:33:33]} {[%emt 00:01:44]} Rxf5 {[%clk 00:50:29]} {[%emt
00:04:04]} 26. Qxd3 {[%clk 00:33:45]} {[%emt 00:00:18]} Rxf1+ {[%clk 00:50:41]}
{[%emt 00:00:18]} 27. Qxf1 {[%clk 00:33:54]} {[%emt 00:00:22]} Qe8 {[%emt
00:09:15]} 28. e6+ {[%clk 00:32:30]} Nf6 {[%clk 00:44:01]} {[%emt 00:00:18]} 29.
Rd7 {[%clk 00:30:01]} {[%emt 00:02:59]} Qf8 {[%clk 00:43:45]} {[%emt 00:00:46]}
30. Qf4 {[%clk 00:28:42]} {[%emt 00:01:49]} Kg8 {[%clk 00:41:50]} {[%emt
00:02:24]} 31. Rxe7 {[%clk 00:25:47]} {[%emt 00:03:27]} Qxe7 {[%clk 00:40:35]}
{[%emt 00:01:44]} 32. Qxf6 {[%clk 00:26:07]} {[%emt 00:00:10]} 1-0

[Event "NJSK 2021 Jeugd C"]
[Site "Almelo, Netherlands"]
[Date "2021.08.04"]
[Round "5.1"]
[White "Labruyere, Roger"]
[Black "De Winter, Arthur"]
[Result "1/2-1/2"]
[TimeControl "90min + 30sec/move"]
[WhiteElo "2003"]
[BlackElo "2000"]

1. e4 c5 2. Nf3 Nc6 3. d4 cxd4 4. Nxd4 Nf6 5. Nc3 e5 6. Ndb5 d6 7. Bg5 a6 8.
Na3 b5 9. Nd5 Be7 10. Bxf6 Bxf6 11. c3 Ne7 12. Nxf6+ gxf6 13. Be2 f5 14. exf5
Bxf5 15. Nc2 O-O 16. Ne3 Be6 17. O-O d5 18. a4 Rb8 19. axb5 axb5 20. Nc2 Ng6 21.
Re1 Qg5 22. Bf1 Rfd8 23. Re3 Kh8 24. Ra5 Nf4 25. Rg3 Qf6 26. Nb4 Bf5 27. Rxb5
Rxb5 28. Bxb5 d4 29. cxd4 Rxd4 30. Qa4 Bg6 31. h3 Kg7 32. Qb3 Qb6 33. Nc6 Rd2
34. Qe3 Qxb5 35. Qxd2 Ne2+ 36. Kh2 Nxg3 37. Qd6 Ne4 38. Qxe5+ Qxe5+ 39. Nxe5
Nxf2 40. Kg3 Nd3 41. Nc4 Kf6 42. b3 Ke6 43. Ne3 f5 44. Kh4 f4 45. Nf1 Be4 46.
g3 f3 47. g4 Ke5 48. Kg3 Kd4 49. h4 Ne5 50. h5 Kd3 51. Kf4 Nc6 52. g5 Nd4 53.
b4 Ne6+ 54. Kg4 f2 55. b5 Ke2 56. Ng3+ Ke1 57. b6 Nd8 58. Kf4 Bd3 59. g6 hxg6
60. h6 g5+ 61. Kxg5 f1=Q 62. Nxf1 Kxf1 63. Kf6 1/2-1/2

[Event "NJSK 2021 Jeugd C"]
[Site "Almelo, Netherlands"]
[Date "2021.08.04"]
[Round "5.2"]
[White "Kumar, Prajit Sai"]
[Black "Smeets, Kobe"]
[Result "1-0"]
[TimeControl "90min + 30sec/move"]
[WhiteElo "1811"]
[BlackElo "1897"]

1. d4 {[%clk 01:30:59]} d5 {[%clk 01:30:51]} {[%emt 00:00:09]} 2. c4 {[%clk
01:31:28]} {[%emt 00:00:01]} e6 {[%clk 01:31:11]} {[%emt 00:00:09]} 3. Nf3
{[%clk 01:31:53]} {[%emt 00:00:05]} c6 {[%clk 01:31:29]} {[%emt 00:00:13]} 4.
g3 {[%clk 01:32:14]} {[%emt 00:00:09]} Bd6 {[%clk 01:31:15]} {[%emt 00:00:43]}
5. Bg2 {[%clk 01:32:26]} {[%emt 00:00:18]} Nd7 {[%clk 01:30:57]} {[%emt
00:00:48]} 6. O-O {[%clk 01:32:26]} {[%emt 00:00:30]} f5 {[%clk 01:30:58]}
{[%emt 00:00:29]} 7. b3 {[%clk 01:32:32]} {[%emt 00:00:24]} Ngf6 {[%clk
01:30:35]} {[%emt 00:00:53]} 8. Ba3 {[%clk 01:32:28]} {[%emt 00:00:34]} Ne4
{[%clk 01:29:05]} {[%emt 00:02:01]} 9. Bxd6 {[%clk 01:29:43]} {[%emt 00:03:15]}
Nxd6 {[%clk 01:29:26]} {[%emt 00:00:09]} 10. Nbd2 {[%clk 01:26:41]} {[%emt
00:03:32]} Qf6 {[%clk 01:20:06]} {[%emt 00:09:50]} 11. e3 {[%clk 01:23:27]}
{[%emt 00:03:43]} O-O {[%clk 01:18:16]} {[%emt 00:02:20]} 12. Ne1 {[%clk
01:20:54]} {[%emt 00:03:03]} Ne4 {[%clk 01:14:39]} {[%emt 00:04:08]} 13. Nd3
{[%clk 01:18:36]} {[%emt 00:02:47]} g5 {[%clk 00:55:55]} {[%emt 00:19:14]} 14.
Nf3 {[%clk 01:16:28]} {[%emt 00:02:38]} Qh6 {[%clk 00:54:51]} {[%emt 00:01:34]}
15. h4 {[%clk 01:08:20]} {[%emt 00:08:39]} Ndf6 {[%clk 00:51:52]} {[%emt
00:03:29]} 16. hxg5 {[%clk 01:07:44]} {[%emt 00:01:06]} Nxg5 {[%clk 00:51:52]}
{[%emt 00:00:29]} 17. Nxg5 {[%clk 01:08:04]} {[%emt 00:00:10]} Qxg5 {[%clk
00:52:06]} {[%emt 00:00:16]} 18. cxd5 {[%clk 01:07:37]} {[%emt 00:00:57]} exd5
{[%clk 00:49:40]} {[%emt 00:02:56]} 19. Qf3 {[%clk 01:06:58]} {[%emt 00:01:09]}
Ne4 {[%clk 00:45:46]} {[%emt 00:04:24]} 20. Qf4 {[%clk 01:06:57]} {[%emt
00:00:30]} Qh5 {[%clk 00:43:40]} {[%emt 00:02:36]} 21. Bf3 {[%clk 01:03:43]}
{[%emt 00:03:44]} Qh3 {[%clk 00:31:42]} {[%emt 00:12:28]} 22. Rad1 {[%clk
00:53:46]} {[%emt 00:10:27]} b6 {[%clk 00:20:49]} {[%emt 00:11:24]} 23. Ne5
{[%clk 00:28:26]} {[%emt 00:25:51]} Ba6 {[%clk 00:19:00]} {[%emt 00:02:18]} 24.
Rfe1 {[%clk 00:27:55]} {[%emt 00:01:00]} Rae8 {[%clk 00:12:54]} {[%emt
00:06:37]} 25. Bg2 {[%clk 00:19:19]} {[%emt 00:09:05]} Qh5 {[%clk 00:13:01]}
{[%emt 00:00:23]} 26. Rc1 {[%clk 00:16:02]} {[%emt 00:03:48]} Re6 {[%clk
00:10:20]} {[%emt 00:03:12]} 27. Rxc6 {[%clk 00:12:38]} {[%emt 00:03:54]} Rxc6
{[%clk 00:06:16]} {[%emt 00:04:34]} 28. Nxc6 {[%clk 00:13:01]} {[%emt
00:00:07]} Nc3 {[%clk 00:02:24]} {[%emt 00:04:22]} 29. Qe5 {[%clk 00:11:05]}
{[%emt 00:02:25]} Bb7 {[%clk 00:00:38]} {[%emt 00:02:16]} 30. Ne7+ {[%clk
00:09:07]} {[%emt 00:02:28]} Kf7 {[%clk 00:00:59]} {[%emt 00:00:09]} 31. Nxd5
{[%clk 00:08:34]} {[%emt 00:01:04]} Nxd5 {[%clk 00:01:09]} {[%emt 00:00:21]} 32.
Bxd5+ {[%clk 00:08:57]} {[%emt 00:00:07]} Bxd5 {[%clk 00:01:36]} {[%emt
00:00:03]} 33. Qxd5+ {[%clk 00:09:20]} {[%emt 00:00:07]} Kg7 {[%clk 00:01:18]}
{[%emt 00:00:48]} 34. Rc1 {[%clk 00:09:39]} {[%emt 00:00:10]} Rf6 {[%clk
00:00:35]} {[%emt 00:01:13]} 35. Rc7+ {[%clk 00:09:23]} {[%emt 00:00:46]} 1-0

[Event "NJSK 2021 Jeugd C"]
[Site "Almelo, Netherlands"]
[Date "2021.08.04"]
[Round "5.3"]
[White "Bakija, Alan"]
[Black "Arnold, Rhys"]
[Result "1-0"]
[TimeControl "90min + 30sec/move"]
[WhiteElo "1870"]
[BlackElo "1748"]

1. c4 {[%clk 01:30:58]} {[%emt 00:00:02]} e5 {[%clk 01:30:32]} {[%emt
00:00:28]} 2. Nc3 {[%clk 01:31:24]} {[%emt 00:00:04]} Nc6 {[%clk 01:30:44]}
{[%emt 00:00:18]} 3. Nf3 {[%clk 01:31:33]} {[%emt 00:00:20]} f5 {[%clk
01:30:02]} {[%emt 00:01:13]} 4. g3 {[%clk 01:31:35]} {[%emt 00:00:28]} Nf6
{[%clk 01:29:38]} {[%emt 00:00:53]} 5. d4 {[%clk 01:31:58]} {[%emt 00:00:07]}
d6 {[%clk 01:16:11]} {[%emt 00:13:57]} 6. d5 {[%clk 01:19:35]} {[%emt
00:12:54]} e4 {[%clk 01:08:55]} {[%emt 00:07:45]} 7. Nh4 {[%clk 01:11:17]}
{[%emt 00:08:48]} Ne5 {[%clk 01:08:53]} {[%emt 00:00:32]} 8. Bh3 {[%clk
01:09:23]} {[%emt 00:02:24]} g6 {[%clk 01:06:16]} {[%emt 00:03:07]} 9. Bg5
{[%clk 01:05:16]} {[%emt 00:04:38]} Bg7 {[%clk 01:02:47]} {[%emt 00:03:59]} 10.
O-O {[%clk 01:01:52]} {[%emt 00:03:52]} O-O {[%clk 00:59:33]} {[%emt 00:03:45]}
11. Rc1 {[%clk 00:54:38]} {[%emt 00:07:43]} Bd7 {[%clk 00:49:02]} {[%emt
00:11:02]} 12. f3 {[%clk 00:23:06]} {[%emt 00:32:03]} exf3 {[%clk 00:47:38]}
{[%emt 00:01:54]} 13. Nxf3 {[%clk 00:22:49]} {[%emt 00:00:47]} Nf7 {[%clk
00:40:08]} {[%emt 00:08:00]} 14. e4 {[%clk 00:12:28]} {[%emt 00:10:51]} fxe4
{[%clk 00:32:23]} {[%emt 00:08:15]} 15. Bxd7 {[%clk 00:12:32]} {[%emt
00:00:25]} Qxd7 {[%clk 00:32:10]} {[%emt 00:00:43]} 16. Bxf6 {[%clk 00:12:37]}
{[%emt 00:00:26]} Bxf6 {[%clk 00:32:07]} {[%emt 00:00:32]} 17. Nxe4 {[%clk
00:12:55]} {[%emt 00:00:12]} Bg7 {[%clk 00:22:56]} {[%emt 00:09:41]} 18. Nfg5
{[%clk 00:05:05]} {[%emt 00:08:20]} Nxg5 {[%clk 00:18:19]} {[%emt 00:05:07]} 19.
Nxg5 {[%clk 00:05:31]} {[%emt 00:00:04]} Rxf1+ {[%clk 00:18:07]} {[%emt
00:00:42]} 20. Qxf1 {[%clk 00:05:50]} {[%emt 00:00:10]} Bd4+ {[%clk 00:17:50]}
{[%emt 00:00:48]} 21. Kg2 {[%clk 00:02:56]} {[%emt 00:03:24]} Be3 {[%clk
00:16:30]} {[%emt 00:01:50]} 22. Ne6 {[%clk 00:01:36]} {[%emt 00:01:50]} Bxc1
{[%clk 00:16:47]} {[%emt 00:00:12]} 23. Qxc1 {[%clk 00:02:04]} {[%emt
00:00:03]} Qf7 {[%clk 00:15:47]} {[%emt 00:01:30]} 24. Qd2 {[%clk 00:01:42]}
{[%emt 00:00:53]} c6 {[%clk 00:15:55]} {[%emt 00:00:22]} 25. Qb4 {[%clk
00:01:39]} {[%emt 00:00:33]} cxd5 {[%clk 00:14:55]} {[%emt 00:01:30]} 26. cxd5
{[%clk 00:02:04]} {[%emt 00:00:05]} Rc8 {[%clk 00:14:08]} {[%emt 00:01:17]} 27.
Qe4 {[%clk 00:01:19]} {[%emt 00:01:15]} Rc1 {[%clk 00:10:49]} {[%emt 00:03:48]}
28. Nf4 {[%clk 00:01:19]} {[%emt 00:00:30]} g5 {[%clk 00:10:29]} {[%emt
00:00:51]} 29. Qe3 {[%clk 00:00:36]} {[%emt 00:01:13]} Rc2+ {[%clk 00:10:07]}
{[%emt 00:00:52]} 30. Ne2 {[%clk 00:00:59]} {[%emt 00:00:07]} Qxd5+ {[%clk
00:10:22]} {[%emt 00:00:14]} 31. Kh3 {[%clk 00:01:07]} {[%emt 00:00:22]} Rc8
{[%clk 00:06:12]} {[%emt 00:04:40]} 32. Nc3 {[%clk 00:01:01]} {[%emt 00:00:37]}
Qf5+ {[%clk 00:06:08]} {[%emt 00:00:33]} 33. Kg2 {[%clk 00:00:51]} {[%emt
00:00:40]} Rf8 {[%clk 00:06:27]} {[%emt 00:00:11]} 34. Qe2 {[%clk 00:01:11]}
{[%emt 00:00:10]} g4 {[%clk 00:06:44]} {[%emt 00:00:12]} 35. Kg1 {[%clk
00:00:50]} {[%emt 00:00:52]} Qf3 {[%clk 00:05:51]} {[%emt 00:01:23]} 36. Qe6+
{[%clk 00:00:44]} {[%emt 00:00:37]} Rf7 {[%clk 00:06:01]} {[%emt 00:00:19]} 37.
Qe8+ {[%clk 00:00:49]} {[%emt 00:00:25]} Kg7 {[%clk 00:06:26]} {[%emt
00:00:05]} 38. Qe1 {[%clk 00:01:16]} {[%emt 00:00:02]} d5 {[%clk 00:04:54]}
{[%emt 00:02:03]} 39. Qe5+ {[%clk 00:01:17]} {[%emt 00:00:29]} Qf6 {[%clk
00:05:19]} {[%emt 00:00:05]} 40. Qe2 {[%clk 00:01:35]} {[%emt 00:00:13]} Qf5
{[%clk 00:04:54]} {[%emt 00:00:55]} 41. Nb5 {[%clk 00:00:49]} {[%emt 00:01:16]}
Qb1+ {[%clk 00:05:02]} {[%emt 00:00:22]} 42. Kg2 {[%clk 00:01:15]} {[%emt
00:00:04]} Qe4+ {[%clk 00:05:23]} {[%emt 00:00:07]} 43. Qxe4 {[%clk 00:01:40]}
{[%emt 00:00:06]} dxe4 {[%clk 00:05:50]} {[%emt 00:00:03]} 44. Nd6 {[%clk
00:02:00]} {[%emt 00:00:09]} Rc7 {[%clk 00:05:28]} {[%emt 00:00:51]} 45. Ne8+
{[%clk 00:02:22]} {[%emt 00:00:10]} Kf7 {[%clk 00:05:30]} {[%emt 00:00:28]} 46.
Nxc7 {[%clk 00:02:45]} {[%emt 00:00:06]} Kf6 {[%clk 00:05:53]} {[%emt
00:00:07]} 47. Kf2 {[%clk 00:03:07]} {[%emt 00:00:08]} Ke5 {[%clk 00:06:16]}
{[%emt 00:00:07]} 48. Ke3 {[%clk 00:03:31]} {[%emt 00:00:06]} a6 {[%clk
00:06:37]} {[%emt 00:00:09]} 49. Ne8 {[%clk 00:03:53]} {[%emt 00:00:08]} a5
{[%clk 00:06:51]} {[%emt 00:00:16]} 50. Nc7 {[%clk 00:04:16]} {[%emt 00:00:07]}
b6 {[%clk 00:07:18]} {[%emt 00:00:03]} 51. Nb5 {[%clk 00:04:41]} {[%emt
00:00:05]} Kd5 {[%clk 00:07:44]} {[%emt 00:00:04]} 52. Nc3+ {[%clk 00:05:05]}
{[%emt 00:00:06]} 1-0